fUST/lending_fUST_20250525
["ID","MTS","AMOUNT","RATE_DAILY","PERIOD"]
[362314071,1748185847754,-430.0,0.00019178,2]
[362314073,1748185847763,-400.0,0.00019178,2]
[362314075,1748185847774,-430.0,0.00019178,2]
[362314077,1748185847783,-430.0,0.00019178,2]
[362314079,1748185847793,-430.0,0.00019178,2]
[362314081,1748185847803,-430.0,0.00019178,2]
[362314083,1748185847813,-403.56529663,0.00019178,2]
[362314085,1748185847822,-430.0,0.00019178,2]
[362314087,1748185847834,-513.0,0.00019178,2]
[362314089,1748185847844,-430.0,0.00019178,2]
[362314091,1748185847855,-430.0,0.00019178,2]
[362314093,1748185847865,-430.0,0.00019178,2]
[362314095,1748185847875,-430.0,0.00019178,2]
[362314097,1748185847886,-324.99217898,0.00019178,2]
[362314099,1748185847895,-430.0,0.00019178,2]
[362314102,1748185847905,-400.0,0.00019178,2]
[362314103,1748185847914,-923.27,0.00019178,2]
[362314105,1748185847924,-401.48027011,0.00019178,2]
[362314107,1748185847934,-430.0,0.00019178,2]
[362314110,1748185847944,-856.24,0.00019178,2]
[362314111,1748185847953,-430.0,0.00019178,2]
[362314113,1748185847963,-400.0,0.00019178,2]
[362314115,1748185847976,-400.0,0.00019178,2]
[362314117,1748185847985,-430.0,0.00019178,2]
[362314119,1748185847995,-400.0,0.00019178,2]
[362314121,1748185848004,-430.0,0.00019178,2]
[362314123,1748185848014,-430.0,0.00019178,2]
[362314125,1748185848024,-430.0,0.00019178,2]
[362314128,1748185848034,-430.0,0.00019178,2]
[362314130,1748185848043,-430.0,0.00019178,2]
[362314131,1748185848053,-430.0,0.00019178,2]
[362314133,1748185848063,-1012.85984742,0.00019178,2]
[362314135,1748185848072,-317.29118866,0.00019178,2]
[362314137,1748185848082,-430.0,0.00019178,2]
[362314139,1748185848092,-430.0,0.00019178,2]
[362314141,1748185848102,-342.02183518,0.00019178,2]
[362314143,1748185848112,-400.0,0.00019178,2]
[362314145,1748185848122,-400.0,0.00019178,2]
[362314148,1748185848131,-400.0,0.00019178,2]
[362314149,1748185848141,-430.0,0.00019178,2]
[362314151,1748185848150,-430.0,0.00019178,2]
[362314153,1748185848159,-413.95301629,0.00019178,2]
[362314156,1748185848170,-400.0,0.00019178,2]
[362314158,1748185848179,-443.66,0.00019178,2]
[362314160,1748185848191,-400.0,0.00019178,2]
[362314161,1748185848200,-430.0,0.00019178,2]
[362314163,1748185848210,-430.0,0.00019178,2]
[362314166,1748185848219,-430.0,0.00019178,2]
[362314168,1748185848228,-430.0,0.00019178,2]
[362314170,1748185848238,-568.04678165,0.00019178,2]
[362314172,1748185848247,-500.0,0.00019178,2]
[362314174,1748185848259,-538.30254465,0.00019178,2]
[362314176,1748185848269,-400.0,0.00019178,2]
[362314178,1748185848279,-430.0,0.00019178,2]
[362314180,1748185848288,-403.66588441,0.00019178,2]
[362314181,1748185848297,-430.0,0.00019178,2]
[362314182,1748185848306,-430.0,0.00019178,2]
[362314183,1748185848315,-400.0,0.00019178,2]
[362314184,1748185848325,-430.0,0.00019178,2]
[362314185,1748185848334,-400.0,0.00019178,2]
[362314186,1748185848344,-430.0,0.00019178,2]
[362314188,1748185848353,-400.0,0.00019178,2]
[362314190,1748185848363,-430.0,0.00019178,2]
[362314192,1748185848374,-400.0,0.00019178,2]
[362314194,1748185848385,-430.0,0.00019178,2]
[362314196,1748185848395,-400.0,0.00019178,2]
[362314198,1748185848405,-430.0,0.00019178,2]
[362314200,1748185848415,-225.00635675,0.00019178,2]
[362314202,1748185848425,-430.0,0.00019178,2]
[362314204,1748185848434,-400.0,0.00019178,2]
[362314207,1748185848446,-430.0,0.00019178,2]
[362314209,1748185848455,-400.0,0.00019178,2]
[362314211,1748185848465,-430.0,0.00019178,2]
[362314213,1748185848475,-430.0,0.00019178,2]
[362314215,1748185848484,-430.0,0.00019178,2]
[362314217,1748185848494,-430.0,0.00019178,2]
[362314219,1748185848504,-430.0,0.00019178,2]
[362314221,1748185848513,-430.0,0.00019178,2]
[362314223,1748185848523,-430.0,0.00019178,2]
[362314225,1748185848532,-405.09134318,0.00019178,2]
[362314227,1748185848541,-400.0,0.00019178,2]
[362314229,1748185848551,-630.15,0.00019178,2]
[362314231,1748185848560,-400.0,0.00019178,2]
[362314233,1748185848570,-430.0,0.00019178,2]
[362314235,1748185848580,-430.0,0.00019178,2]
[362314237,1748185848589,-400.0,0.00019178,2]
[362314239,1748185848600,-430.0,0.00019178,2]
[362314241,1748185848610,-400.0,0.00019178,2]
[362314243,1748185848620,-430.0,0.00019178,2]
[362314245,1748185848629,-430.0,0.00019178,2]
[362314247,1748185848639,-504.42079598,0.00019178,2]
[362314249,1748185848650,-430.0,0.00019178,2]
[362314251,1748185848659,-430.0,0.00019178,2]
[362314253,1748185848669,-430.0,0.00019178,2]
[362314255,1748185848679,-477.90158132,0.00019178,2]
[362314257,1748185848690,-527.32,0.00019178,2]
[362314259,1748185848700,-430.0,0.00019178,2]
[362314261,1748185848710,-400.0,0.00019178,2]
[362314263,1748185848720,-430.0,0.00019178,2]
[362314265,1748185848730,-430.0,0.00019178,2]
[362314267,1748185848740,-430.0,0.00019178,2]
[362314269,1748185848750,-511.35870651,0.00019178,2]
[362314271,1748185848759,-430.0,0.00019178,2]
[362314273,1748185848769,-519.02725028,0.00019178,2]
[362314275,1748185848780,-430.0,0.00019178,2]
[362314277,1748185848791,-430.0,0.00019178,2]
[362314279,1748185848800,-430.0,0.00019178,2]
[362314281,1748185848810,-430.0,0.00019178,2]
[362314283,1748185848819,-504.86,0.00019178,2]
[362314285,1748185848828,-400.0,0.00019178,2]
[362314287,1748185848837,-458.19504366,0.00019178,2]
[362314290,1748185848847,-467.03158747,0.00019178,2]
[362314292,1748185848856,-430.0,0.00019178,2]
[362314294,1748185848867,-430.0,0.00019178,2]
[362314296,1748185848877,-430.0,0.00019178,2]
[362314298,1748185848887,-307.12383123,0.00019178,2]
[362314300,1748185848897,-432.21,0.00019178,2]
[362314302,1748185848906,-426.98220325,0.00019178,2]
[362314304,1748185848916,-450.0,0.00019178,2]
[362314306,1748185848925,-430.0,0.00019178,2]
[362314308,1748185848937,-430.0,0.00019178,2]
[362314310,1748185848947,-430.0,0.00019178,2]
[362314312,1748185848956,-430.0,0.00019178,2]
[362314314,1748185848966,-430.0,0.00019178,2]
[362314316,1748185848976,-528.46,0.00019178,2]
[362314318,1748185848985,-430.0,0.00019178,2]
[362314320,1748185848996,-430.0,0.00019178,2]
[362314322,1748185849005,-400.0,0.00019178,2]
[362314324,1748185849015,-282.82926234,0.00019178,2]
[362314326,1748185849025,-430.0,0.00019178,2]
[362314328,1748185849035,-556.94978467,0.00019178,2]
[362314330,1748185849044,-430.0,0.00019178,2]
[362314332,1748185849054,-430.0,0.00019178,2]
[362314334,1748185849064,-500.0,0.00019178,2]
[362314336,1748185849074,-500.0,0.00019178,2]
[362314339,1748185849085,-500.0,0.00019178,2]
[362314341,1748185849095,-500.0,0.00019178,2]
[362314343,1748185849105,-500.0,0.00019178,2]
[362314345,1748185849115,-500.0,0.00019178,2]
[362314347,1748185849125,-500.0,0.00019178,2]
[362314349,1748185849135,-500.0,0.00019178,2]
[362314351,1748185849145,-430.0,0.00019178,2]
[362314353,1748185849154,-250.67928413,0.00019178,2]
[362314355,1748185849164,-430.0,0.00019178,2]
[362314357,1748185849174,-430.0,0.00019178,2]
[362314359,1748185849184,-430.0,0.00019178,2]
[362314361,1748185849195,-430.0,0.00019178,2]
[362314363,1748185849204,-430.0,0.00019178,2]
[362314365,1748185849214,-430.0,0.00019178,2]
[362314367,1748185849224,-600.0,0.00019178,2]
[362314369,1748185849234,-430.0,0.00019178,2]
[362314371,1748185849243,-430.0,0.00019178,2]
[362314373,1748185849252,-430.0,0.00019178,2]
[362314375,1748185849262,-430.0,0.00019178,2]
[362314377,1748185849271,-430.0,0.00019178,2]
[362314379,1748185849280,-410.0,0.00019178,2]
[362314381,1748185849290,-430.0,0.00019178,2]
[362314383,1748185849300,-430.0,0.00019178,2]
[362314385,1748185849309,-430.0,0.00019178,2]
[362314387,1748185849319,-430.0,0.00019178,2]
[362314389,1748185849328,-430.0,0.00019178,2]
[362314391,1748185849337,-266.913369,0.00019178,2]
[362314394,1748185849347,-428.4740742,0.00019178,2]
[362314396,1748185849356,-430.0,0.00019178,2]
[362314397,1748185849365,-430.0,0.00019178,2]
[362314400,1748185849378,-430.0,0.00019178,2]
[362314402,1748185849388,-430.0,0.00019178,2]
[362314404,1748185849398,-400.0,0.00019178,2]
[362314406,1748185849407,-430.0,0.00019178,2]
[362314408,1748185849416,-430.0,0.00019178,2]
[362314410,1748185849427,-326.14536547,0.00019178,2]
[362314412,1748185849436,-430.0,0.00019178,2]
[362314414,1748185849445,-521.82,0.00019178,2]
[362314416,1748185849456,-430.0,0.00019178,2]
[362314418,1748185849466,-500.0,0.00019178,2]
[362314419,1748185849475,-430.0,0.00019178,2]
[362314422,1748185849485,-430.0,0.00019178,2]
[362314424,1748185849495,-430.0,0.00019178,2]
[362314426,1748185849504,-430.0,0.00019178,2]
[362314428,1748185849513,-165.08031277,0.00019178,2]
[362314430,1748185849523,-3829.57,0.00019178,2]
[362314432,1748185849532,-432.49311301,0.00019178,2]
[362314434,1748185849542,-430.0,0.00019178,2]
[362314436,1748185849551,-240.70647587,0.00019178,2]
[362314438,1748185849561,-430.0,0.00019178,2]
[362314440,1748185849571,-430.0,0.00019178,2]
[362314442,1748185849580,-430.0,0.00019178,2]
[362314444,1748185849591,-430.0,0.00019178,2]
[362314446,1748185849600,-630.67,0.00019178,2]
[362314448,1748185849612,-560.65704578,0.00019178,2]
[362314450,1748185849622,-430.0,0.00019178,2]
[362314452,1748185849632,-430.0,0.00019178,2]
[362314454,1748185849642,-483.0309688,0.00019178,2]
[362314456,1748185849653,-463.9319657,0.00019178,2]
[362314458,1748185849663,-430.0,0.00019178,2]
[362314460,1748185849673,-430.0,0.00019178,2]
[362314462,1748185849683,-667.01,0.00019178,2]
[362314464,1748185849693,-430.0,0.00019178,2]
[362314466,1748185849703,-430.0,0.00019178,2]
[362314468,1748185849712,-430.0,0.00019178,2]
[362314470,1748185849722,-430.0,0.00019178,2]
[362314472,1748185849732,-876.0,0.00019178,2]
[362314474,1748185849742,-403.07855009,0.00019178,2]
[362314476,1748185849752,-426.87336436,0.00019178,2]
[362314478,1748185849762,-430.0,0.00019178,2]
[362314480,1748185849772,-430.0,0.00019178,2]
[362314482,1748185849782,-430.0,0.00019178,2]
[362314484,1748185849791,-430.0,0.00019178,2]
[362314486,1748185849801,-3265.09,0.00019178,2]
[362314488,1748185849810,-430.0,0.00019178,2]
[362314490,1748185849820,-2161.27,0.00019178,2]
[362314492,1748185849830,-430.0,0.00019178,2]
[362314494,1748185849839,-430.0,0.00019178,2]
[362314496,1748185849848,-1451.17,0.00019178,2]
[362314498,1748185849858,-430.0,0.00019178,2]
[362314500,1748185849867,-430.0,0.00019178,2]
[362314502,1748185849876,-430.0,0.00019178,2]
[362314504,1748185849886,-430.0,0.00019178,2]
[362314506,1748185849896,-430.0,0.00019178,2]
[362314508,1748185849905,-543.86,0.00019178,2]
[362314510,1748185849915,-164.94476446,0.00019178,2]
[362314512,1748185849925,-430.0,0.00019178,2]
[362314513,1748185849935,-540.0,0.00019178,2]
[362314516,1748185849944,-430.0,0.00019178,2]
[362314517,1748185849954,-430.0,0.00019178,2]
[362314520,1748185849964,-430.0,0.00019178,2]
[362314522,1748185849975,-430.0,0.00019178,2]
[362314524,1748185849985,-430.0,0.00019178,2]
[362314526,1748185849994,-430.0,0.00019178,2]
[362314527,1748185850003,-430.0,0.00019178,2]
[362314529,1748185850013,-430.0,0.00019178,2]
[362314531,1748185850023,-262.67361438,0.00019178,2]
[362314533,1748185850031,-430.0,0.00019178,2]
[362314535,1748185850041,-430.0,0.00019178,2]
[362314537,1748185850051,-430.0,0.00019178,2]
[362314539,1748185850061,-430.0,0.00019178,2]
[362314541,1748185850070,-430.0,0.00019178,2]
[362314543,1748185850080,-949.72,0.00019178,2]
[362314546,1748185850090,-151.0,0.00019178,2]
[362314547,1748185850100,-430.0,0.00019178,2]
[362314549,1748185850110,-151.0,0.00019178,2]
[362314552,1748185850120,-614.26,0.00019178,2]
[362314554,1748185850130,-151.0,0.00019178,2]
[362314556,1748185850139,-151.0,0.00019178,2]
[362314558,1748185850149,-430.0,0.00019178,2]
[362314560,1748185850158,-954.29,0.00019178,2]
[362314562,1748185850168,-577.95019403,0.00019178,2]
[362314564,1748185850178,-1206.56,0.00019178,2]
[362314566,1748185850188,-530.1,0.00019178,2]
[362314568,1748185850199,-430.0,0.00019178,2]
[362314570,1748185850209,-178.15013796,0.00019178,2]
[362314572,1748185850219,-430.0,0.00019178,2]
[362314574,1748185850228,-341.28839488,0.00019178,2]
[362314576,1748185850238,-430.0,0.00019178,2]
[362314578,1748185850248,-430.0,0.00019178,2]
[362314580,1748185850258,-658.32,0.00019178,2]
[362314582,1748185850267,-430.0,0.00019178,2]
[362314584,1748185850277,-430.0,0.00019178,2]
[362314586,1748185850287,-430.0,0.00019178,2]
[362314588,1748185850297,-510.65615027,0.00019178,2]
[362314590,1748185850307,-2264.53,0.00019178,2]
[362314592,1748185850317,-151.0,0.00019178,2]
[362314594,1748185850327,-214.5199001,0.00019178,2]
[362314596,1748185850336,-255.71811751,0.00019178,2]
[362314598,1748185850346,-348.56729825,0.00019178,2]
[362314600,1748185850355,-430.0,0.00019178,2]
[362314616,1748185850507,-1182.2,0.00019178,2]
[362314618,1748185850517,-430.0,0.00019178,2]
[362314620,1748185850527,-430.0,0.00019178,2]
[362314622,1748185850536,-430.0,0.00019178,2]
[362314624,1748185850546,-430.0,0.00019178,2]
[362314626,1748185850556,-430.0,0.00019178,2]
[362314628,1748185850566,-628.13,0.00019178,2]
[362314630,1748185850576,-430.0,0.00019178,2]
[362314632,1748185850586,-793.02,0.00019178,2]
[362314634,1748185850595,-430.0,0.00019178,2]
[362314636,1748185850605,-430.0,0.00019178,2]
[362314638,1748185850615,-430.0,0.00019178,2]
[362314640,1748185850624,-430.0,0.00019178,2]
[362314642,1748185850634,-430.0,0.00019178,2]
[362314644,1748185850643,-430.0,0.00019178,2]
[362314646,1748185850653,-430.0,0.00019178,2]
[362314648,1748185850662,-430.0,0.00019178,2]
[362314650,1748185850672,-953.65,0.00019178,2]
[362314652,1748185850681,-440.81218073,0.00019178,2]
[362314654,1748185850692,-1422.43,0.00019178,2]
[362314656,1748185850702,-532.65,0.00019178,2]
[362314658,1748185850712,-221.60691411,0.00019178,2]
[362314660,1748185850723,-430.0,0.00019178,2]
[362314662,1748185850732,-430.0,0.00019178,2]
[362314664,1748185850742,-1217.74,0.00019178,2]
[362314666,1748185850752,-430.0,0.00019178,2]
[362314668,1748185850761,-430.0,0.00019178,2]
[362314670,1748185850770,-430.0,0.00019178,2]
[362314672,1748185850780,-430.0,0.00019178,2]
[362314674,1748185850789,-430.0,0.00019178,2]
[362314676,1748185850799,-430.0,0.00019178,2]
[362314678,1748185850809,-430.0,0.00019178,2]
[362314680,1748185850818,-430.0,0.00019178,2]
[362314682,1748185850828,-430.0,0.00019178,2]
[362314684,1748185850838,-430.0,0.00019178,2]
[362314686,1748185850847,-430.0,0.00019178,2]
[362314688,1748185850858,-430.0,0.00019178,2]
[362314690,1748185850867,-490.63,0.00019178,2]
[362314692,1748185850877,-430.0,0.00019178,2]
[362314694,1748185850886,-2576.56032105,0.00019178,2]
[362314714,1748185851081,-1150.08967895,0.00019178,2]
[362314716,1748185851092,-430.0,0.00019178,2]
[362314718,1748185851102,-430.0,0.00019178,2]
[362314720,1748185851111,-430.0,0.00019178,2]
[362314722,1748185851121,-425.12817104,0.00019178,2]
[362314727,1748185851155,-4.87182896,0.00019178,2]
[362314729,1748185851164,-430.0,0.00019178,2]
[362314731,1748185851174,-186.39062403,0.00019178,2]
[362315367,1748186546845,610.663829,0.00013699,2]
[362315375,1748186748010,254.36654277,0.0002465,120]
[362315444,1748187032852,-5000.0,0.00017315,2]
[362315446,1748187032864,-160.0,0.00017832,2]
[362315448,1748187032874,-300.0,0.0001794,2]
[362315450,1748187032885,-6596.4339829,0.00017941,2]
[362315452,1748187032897,-185.98470611,0.00017999,2]
[362315454,1748187032908,-500.0,0.00017999,2]
[362315456,1748187032919,-500.0,0.00017999,2]
[362315458,1748187032930,-500.0,0.00017999,2]
[362315460,1748187032942,-500.0,0.00017999,2]
[362315462,1748187032952,-457.37119534,0.00017999,2]
[362315464,1748187032963,-175861.78124167,0.00018,2]
[362315467,1748187032974,-207.4,0.00018379,2]
[362315470,1748187032985,-160.0,0.00018389,2]
[362315473,1748187032995,-160.0,0.00018389,2]
[362315475,1748187033005,-160.0,0.00018389,2]
[362315478,1748187033015,-423.00916439,0.00018389,2]
[362315481,1748187033027,-229.13142565,0.00018389,2]
[362315484,1748187033038,-160.0,0.00018389,2]
[362315486,1748187033050,-160.0,0.0001839,2]
[362315487,1748187033061,-404.0,0.00018578,2]
[362315488,1748187033077,-624.52179194,0.00018673,2]
[362315489,1748187033088,-685.105863,0.00018794,2]
[362315490,1748187033099,-2628.95977132,0.000189,2]
[362315491,1748187033111,-624.52179194,0.00018973,2]
[362315492,1748187033121,-34712.54737,0.00018999,2]
[362315493,1748187033132,-2000.0,0.00019,2]
[362315494,1748187033142,-2000.0,0.00019,2]
[362315495,1748187033152,-2000.0,0.00019,2]
[362315496,1748187033163,-2000.0,0.00019,2]
[362315497,1748187033174,-2000.0,0.00019,2]
[362315498,1748187033185,-2000.0,0.00019,2]
[362315499,1748187033196,-183.95042678,0.00019078,2]
[362315500,1748187033207,-1970.7172921,0.00019078,2]
[362315501,1748187033218,-2628.95977108,0.00019107,2]
[362315502,1748187033229,-202.36,0.00019146,2]
[362315503,1748187033240,-502.56205692,0.00019173,2]
[362315504,1748187033251,-500.0,0.00019173,2]
[362315505,1748187033261,-500.0,0.00019173,2]
[362315506,1748187033273,-500.18815901,0.00019173,2]
[362315507,1748187033284,-500.0,0.00019173,2]
[362315508,1748187033294,-367.12208631,0.00019173,2]
[362315509,1748187033305,-500.0,0.00019173,2]
[362315510,1748187033315,-500.0,0.00019173,2]
[362315511,1748187033331,-500.0,0.00019173,2]
[362315512,1748187033343,-292.87985933,0.00019177,2]
[362315513,1748187033353,-2434.25537426,0.00019178,2]
[362315514,1748187033389,-413.927504,0.00019178,2]
[362315553,1748187038488,-212.55626673,0.00018208,2]
[362315555,1748187038498,-12652.24558203,0.00018389,2]
[362315557,1748187038508,-621.80784736,0.00018389,2]
[362315559,1748187038518,-38298.27768237,0.00019178,2]
[362315561,1748187038527,-7742.69371723,0.00019178,3]
[362315563,1748187038537,-151.0,0.00019178,2]
[362315565,1748187038547,-151.000001,0.00019178,2]
[362315567,1748187038556,-164.14083915,0.00019178,2]
[362315569,1748187038565,-430.0,0.00019178,2]
[362315571,1748187038576,-277.95163896,0.00019178,2]
[362315573,1748187038585,-400.0,0.00019178,2]
[362315575,1748187038594,-401.83207176,0.00019178,2]
[362315577,1748187038604,-758.18,0.00019178,2]
[362315581,1748187038614,-430.0,0.00019178,2]
[362315584,1748187038623,-430.0,0.00019178,2]
[362315587,1748187038632,-400.0,0.00019178,2]
[362315590,1748187038641,-504.09797591,0.00019178,2]
[362315593,1748187038649,-400.0,0.00019178,2]
[362315595,1748187038658,-400.0,0.00019178,2]
[362315597,1748187038668,-400.0,0.00019178,2]
[362315599,1748187038677,-400.0,0.00019178,2]
[362315601,1748187038687,-500.0,0.00019178,2]
[362315603,1748187038696,-400.0,0.00019178,2]
[362315604,1748187038706,-400.0,0.00019178,2]
[362315605,1748187038715,-430.0,0.00019178,2]
[362315606,1748187038725,-400.0,0.00019178,2]
[362315607,1748187038904,-1000.0,0.00019178,2]
[362315608,1748187038914,-400.0,0.00019178,2]
[362315609,1748187038924,-430.0,0.00019178,2]
[362315610,1748187038933,-500.0,0.00019178,2]
[362315612,1748187038943,-510.03668428,0.00019178,2]
[362315614,1748187038953,-500.0,0.00019178,2]
[362315616,1748187038962,-430.0,0.00019178,2]
[362315618,1748187038972,-508.37697616,0.00019178,2]
[362315620,1748187038982,-151.0,0.00019178,2]
[362315622,1748187038991,-257.990968,0.00019178,2]
[362315624,1748187039001,-501.65230332,0.00019178,2]
[362315626,1748187039011,-500.0,0.00019178,2]
[362315628,1748187039020,-500.0,0.00019178,2]
[362315630,1748187039029,-430.0,0.00019178,2]
[362315633,1748187039039,-400.0,0.00019178,2]
[362315635,1748187039049,-500.0,0.00019178,2]
[362315637,1748187039058,-500.0,0.00019178,2]
[362315639,1748187039067,-502.96567269,0.00019178,2]
[362315640,1748187039079,-430.0,0.00019178,2]
[362315642,1748187039088,-442.38670019,0.00019178,2]
[362315644,1748187039098,-400.0,0.00019178,2]
[362315647,1748187039108,-500.0,0.00019178,2]
[362315649,1748187039118,-400.0,0.00019178,2]
[362315651,1748187039127,-500.0,0.00019178,2]
[362315653,1748187039141,-526.70631053,0.00019178,2]
[362315655,1748187039151,-400.0,0.00019178,2]
[362315657,1748187039160,-430.0,0.00019178,2]
[362315659,1748187039169,-400.0,0.00019178,2]
[362315661,1748187039179,-505.19891667,0.00019178,2]
[362315663,1748187039188,-400.0,0.00019178,2]
[362315665,1748187039198,-306.19819706,0.00019178,2]
[362315670,1748187039230,-136.89180294,0.00019178,2]
[362315672,1748187039239,-430.0,0.00019178,2]
[362315674,1748187039249,-500.0,0.00019178,2]
[362315676,1748187039259,-430.0,0.00019178,2]
[362315678,1748187039272,-500.0,0.00019178,2]
[362315680,1748187039281,-500.0,0.00019178,2]
[362315682,1748187039290,-400.0,0.00019178,2]
[362315684,1748187039300,-400.0,0.00019178,2]
[362315686,1748187039310,-430.0,0.00019178,2]
[362315688,1748187039319,-430.0,0.00019178,2]
[362315690,1748187039332,-243.10820741,0.00019178,2]
[362315692,1748187039345,-156.89179259,0.00019178,2]
[362315694,1748187039354,-430.0,0.00019178,2]
[362315697,1748187039364,-151.0,0.00019178,2]
[362315698,1748187039373,-430.0,0.00019178,2]
[362315701,1748187039383,-481.20205262,0.00019178,2]
[362315702,1748187039392,-490.90615479,0.00019178,2]
[362315705,1748187039405,-9.09384521,0.00019178,2]
[362315707,1748187039414,-430.0,0.00019178,2]
[362315709,1748187039424,-244.17615479,0.00019178,2]
[362315711,1748187039439,-155.82384521,0.00019178,2]
[362315713,1748187039449,-430.0,0.00019178,2]
[362315715,1748187039458,-400.0,0.00019178,2]
[362315717,1748187039468,-430.0,0.00019178,2]
[362315719,1748187039477,-430.0,0.00019178,2]
[362315721,1748187039487,-430.0,0.00019178,2]
[362315723,1748187039496,-430.0,0.00019178,2]
[362315725,1748187039506,-430.0,0.00019178,2]
[362315727,1748187039516,-186.6006448,0.00019178,2]
[362315729,1748187039525,-430.0,0.00019178,2]
[362315731,1748187039534,-430.0,0.00019178,2]
[362315733,1748187039544,-259.68836517,0.00019178,2]
[362315736,1748187039553,-430.0,0.00019178,2]
[362315738,1748187039563,-405.14308702,0.00019178,2]
[362315740,1748187039572,-233.67553299,0.00019178,2]
[362315742,1748187039584,-430.0,0.00019178,2]
[362315744,1748187039593,-500.0,0.00019178,2]
[362315746,1748187039603,-151.0,0.00019178,2]
[362315748,1748187039612,-210.790357,0.00019178,2]
[362315750,1748187039621,-430.0,0.00019178,2]
[362315752,1748187039631,-430.0,0.00019178,2]
[362315754,1748187039640,-151.0,0.00019178,2]
[362315756,1748187039649,-161.650244,0.00019178,2]
[362315758,1748187039658,-430.0,0.00019178,2]
[362315760,1748187039668,-356.24062358,0.00019178,2]
[362315762,1748187039678,-430.0,0.00019178,2]
[362315764,1748187039688,-430.0,0.00019178,2]
[362315766,1748187039698,-430.0,0.00019178,2]
[362315768,1748187039707,-430.0,0.00019178,2]
[362315770,1748187039716,-83.89613822,0.00019178,2]
[362315879,1748187040864,-316.10386178,0.00019178,2]
[362315880,1748187040874,-400.42726605,0.00019178,2]
[362315881,1748187040883,-150.93469053,0.00019178,2]
[362315882,1748187040894,-366.37253916,0.00019178,2]
[362315883,1748187040903,-430.0,0.00019178,2]
[362315884,1748187040913,-430.0,0.00019178,2]
[362315885,1748187040923,-276.33231616,0.00019178,2]
[362315887,1748187040935,-153.66768384,0.00019178,2]
[362315889,1748187040945,-391.00074735,0.00019178,2]
[362315892,1748187040957,-38.99925265,0.00019178,2]
[362315894,1748187040966,-430.0,0.00019178,2]
[362315896,1748187040976,-430.0,0.00019178,2]
[362315897,1748187040985,-94.79350045,0.00019178,2]
[362315900,1748187040996,-335.20649955,0.00019178,2]
[362315902,1748187041005,-400.0,0.00019178,2]
[362315904,1748187041013,-430.0,0.00019178,2]
[362315905,1748187041022,-430.0,0.00019178,2]
[362315907,1748187041031,-430.0,0.00019178,2]
[362315909,1748187041040,-400.0,0.00019178,2]
[362315911,1748187041049,-501.28122029,0.00019178,2]
[362315913,1748187041058,-255.26730144,0.00019178,2]
[362315915,1748187041066,-518.0,0.00019178,2]
[362315917,1748187041075,-430.0,0.00019178,2]
[362315919,1748187041085,-430.0,0.00019178,2]
[362315921,1748187041094,-400.0,0.00019178,2]
[362315923,1748187041103,-430.0,0.00019178,2]
[362315925,1748187041112,-430.0,0.00019178,2]
[362315927,1748187041122,-430.0,0.00019178,2]
[362315929,1748187041132,-430.0,0.00019178,2]
[362315931,1748187041142,-400.0,0.00019178,2]